bitfinex/quotes_SOLUSD_20241029
["timestamp","ask_amount","ask_price","bid_price","bid_amount"]
[1730202745462,12.98183471,180.98,180.93,12.98333471]
[1730202747410,7.45643471,180.96,180.89,13.8204]
[1730202747891,7.45643471,180.97,180.89,13.8204]
[1730202748097,7.45643471,180.95,180.89,13.8204]
[1730202748269,7.45643471,180.95,180.9,7.45643471]
[1730202749789,12.98303471,180.94,180.89,21.27683471]
[1730202749993,12.98303471,180.94,180.89,7.45643471]
[1730202750783,5.5266,180.94,180.89,7.45643471]
[1730202750984,29.82573884,181.0,180.93,7.45643471]
[1730202750985,20.0,181.0,180.93,7.45643471]
[1730202751266,20.0,180.98,180.94,7.45643471]
[1730202751467,20.0,180.98,180.95,7.45643471]
[1730202751688,24.54107339,181.01,180.96,7.45643471]
[1730202751866,24.54107339,181.01,180.97,7.45643471]
[1730202752066,8.79957339,181.01,180.98,7.45643471]
[1730202752262,8.79957339,181.01,180.92,6.1578]
[1730202752263,8.79957339,181.01,180.99,7.45643471]
[1730202754591,8.79957339,181.01,180.98,7.45643471]
[1730202754781,8.79957339,181.01,180.97,12.98213471]
[1730202755097,14.32417339,181.01,180.95,13.8152]
[1730202755274,7.45643471,181.0,180.95,7.45643471]
[1730202755471,21.7806081,181.01,180.96,7.45643471]
[1730202755684,14.32417339,181.01,180.98,7.45643471]
[1730202756476,14.32417339,181.01,180.97,7.45643471]
[1730202756687,21.7806081,181.01,180.96,7.45643471]
[1730202758402,7.45643471,181.0,180.95,21.27233471]
[1730202758901,7.45643471,180.99,180.93,5.5269]
[1730202759103,7.45643471,180.99,180.94,7.45643471]
[1730202759905,14.32417339,181.01,180.93,5.5269]
[1730202759906,12.98123471,181.0,180.95,7.45643471]
[1730202762302,5.5248,181.0,180.96,7.45643471]
[1730202763406,5.5248,181.0,180.97,7.45643471]
[1730202764306,5.5248,181.0,180.96,7.45643471]
[1730202765514,7.45643471,180.98,180.91,5.5276]
[1730202765807,7.45643471,180.99,180.94,7.45643471]
[1730202767196,5.5254,180.98,180.94,7.45643471]
[1730202767507,5.5254,180.98,180.93,5.5268]
[1730202767707,5.5254,180.98,180.94,7.45643471]
[1730202770175,5.5248,181.0,180.97,7.45643471]
[1730202771103,5.5248,181.0,180.9,46.45463884]
[1730202771104,5.5248,181.0,180.98,7.45643471]
[1730202771312,14.32417339,181.01,180.99,7.45643471]
[1730202774100,8.79957339,181.01,180.99,7.45643471]
[1730202774500,8.79957339,181.01,180.98,7.45643471]
[1730202777318,20.0,180.98,180.87,5.5286]
[1730202777490,7.45643471,180.94,180.89,7.45643471]
[1730202778115,5.5267,180.94,180.9,7.45643471]
[1730202778317,12.98313471,180.94,180.87,13.8217]
[1730202778648,17.20569143,180.94,180.89,11.67899143]
[1730202780451,11.67899143,180.93,180.88,11.67899143]
[1730202780630,11.67899143,180.92,180.87,13.8217]
[1730202781334,11.67899143,180.92,180.87,25.50069143]
[1730202781539,11.67899143,180.92,180.87,31.02929143]
[1730202782233,17.20629143,180.92,180.87,31.02929143]
[1730202782445,17.20629143,180.92,180.87,25.50069143]
[1730202782750,17.20629143,180.92,180.87,31.02949143]
[1730202782962,17.20629143,180.92,180.87,19.3505]
[1730202783448,17.20629143,180.92,180.87,25.50069143]
[1730202783949,11.67899143,180.91,180.87,13.8217]
[1730202784356,11.67899143,180.9,180.85,11.67899143]
[1730202784653,11.67899143,180.9,180.85,17.20829143]
[1730202787547,17.20689143,180.9,180.85,17.20829143]
[1730202792456,11.67899143,180.91,180.85,17.20829143]
[1730202792636,11.67899143,180.89,180.84,25.50319143]
[1730202793037,11.67899143,180.9,180.85,11.67899143]
[1730202793449,11.67899143,180.88,180.82,17.20909143]
[1730202793638,11.67899143,180.89,180.84,11.67899143]
[1730202793838,20.0,180.9,180.86,11.67899143]
[1730202794267,20.0,180.91,180.87,11.67899143]
[1730202794645,5.5277,180.91,180.88,11.67899143]
[1730202795355,17.20529143,180.95,180.9,11.67899143]
[1730202795559,20.0,180.94,180.9,11.67899143]
[1730202796355,5.5269,180.93,180.9,11.67899143]
[1730202798559,5.5269,180.93,180.9,7.47423236]
[1730202798774,13.00113236,180.93,180.88,7.47423236]
[1730202798977,7.47423236,180.92,180.87,7.47423236]
[1730202799772,13.00163236,180.92,180.87,7.47423236]
[1730202799957,7.47423236,180.91,180.85,26.82633236]
[1730202800267,7.47423236,180.91,180.86,7.47423236]
[1730202800649,13.00163236,180.92,180.87,7.47423236]
[1730202802974,25.5263,180.95,180.89,7.47423236]
[1730202803146,7.47423236,180.94,180.89,7.47423236]
[1730202804472,5.5269,180.93,180.89,7.47423236]
[1730202805070,20.0,180.95,180.89,7.47423236]
[1730202805367,33.00083236,180.95,180.9,7.47423236]
[1730202805555,5.5266,180.95,180.9,7.47423236]
[1730202806279,5.5266,180.95,180.9,13.00183236]
[1730202807971,13.00083236,180.95,180.9,13.00183236]
[1730202810476,5.5266,180.95,180.91,7.47423236]
[1730202811778,5.5266,180.95,180.9,7.47423236]
[1730202812350,11.9312,180.98,180.93,7.47423236]
[1730202812551,12.99973236,180.98,180.93,7.47423236]
[1730202812759,5.5255,180.98,180.94,7.47423236]
[1730202814894,5.5255,180.98,180.95,7.47423236]
[1730202815258,5.5255,180.98,180.94,7.47423236]
[1730202816185,5.5255,180.98,180.95,7.47423236]
[1730202817186,28.82423236,181.0,180.95,7.47423236]
[1730202817354,21.35,181.0,180.95,7.47423236]
[1730202817565,21.35,181.0,180.9,29.89692944]
[1730202817566,5.5242,181.02,180.96,7.47423236]
[1730202817864,12.99843236,181.02,180.96,7.47423236]
[1730202818494,7.47423236,181.01,180.96,7.47423236]
[1730202819464,5.5248,181.0,180.96,7.47423236]
[1730202819772,12.99903236,181.0,180.95,13.00043236]
[1730202821567,5.5248,181.0,180.97,7.47423236]
[1730202821759,5.5246,181.01,180.97,7.47423236]
[1730202821961,12.99883236,181.01,180.96,7.47423236]
[1730202824298,6.2778,181.03,180.96,7.47423236]
[1730202824472,7.47423236,181.01,180.96,7.47423236]
[1730202825691,5.5248,181.0,180.96,7.47423236]
[1730202826490,12.99903236,181.0,180.95,13.00053236]
[1730202826793,12.99903236,181.0,180.95,7.47423236]
[1730202827684,7.47423236,180.99,180.94,13.00063236]
[1730202828086,12.99943236,180.99,180.94,13.00063236]
[1730202828794,12.99943236,180.99,180.94,5.5264]
[1730202828972,12.99943236,180.99,180.94,13.00063236]
[1730202829894,12.99943236,180.99,180.95,7.47423236]
[1730202829895,5.5252,180.99,180.95,7.47423236]
[1730202830970,12.99943236,180.99,180.87,15.191]
[1730202831175,5.5252,180.99,180.92,7.47423236]
[1730202831379,7.47423236,180.98,180.92,7.47423236]
[1730202832596,12.99993236,180.98,180.92,13.00123236]
[1730202832973,12.99993236,180.98,180.93,7.47423236]
[1730202833573,12.99993236,180.98,180.93,13.00113236]
[1730202834598,7.47423236,181.0,180.95,7.47423236]
[1730202835000,7.47423236,181.0,180.94,7.47423236]
[1730202835805,5.5251,180.99,180.94,13.00083236]
[1730202836673,7.47423236,180.99,180.94,13.00083236]
[1730202837875,12.99953236,180.99,180.94,13.00083236]
[1730202839587,12.99953236,180.99,180.9,20.0]
[1730202839786,12.99953236,180.99,180.94,7.47423236]
[1730202839979,5.5253,180.99,180.94,7.47423236]
[1730202840304,5.5253,180.99,180.95,7.47423236]
[1730202840674,12.99953236,180.99,180.94,7.47423236]
[1730202841775,7.47423236,180.98,180.9,20.0]
[1730202842103,7.47423236,180.95,180.9,7.47423236]
[1730202842275,7.47423236,180.94,180.89,7.47423236]
[1730202842992,13.00073236,180.95,180.9,21.29393236]
[1730202843203,7.47423236,180.93,180.88,7.47423236]
[1730202844291,7.47423236,180.93,180.89,5.5282]
[1730202844606,13.00123236,180.93,180.89,5.5282]
[1730202844909,7.47423236,180.92,180.87,19.3502]
[1730202845083,7.47423236,180.9,180.87,19.3505]
[1730202846210,7.47423236,180.9,180.87,13.8217]
[1730202846374,6.3727,180.96,180.85,5.5294]
[1730202846375,7.47423236,180.89,180.85,5.5294]
[1730202846577,7.47423236,180.87,180.84,13.8242]
[1730202847886,13.00273236,180.88,180.84,13.8242]
[1730202848088,5.5285,180.88,180.84,21.29843236]
[1730202848300,13.00273236,180.88,180.84,13.8242]
[1730202848607,16.368,180.92,180.84,21.29843236]
[1730202848781,7.47423236,180.89,180.84,26.82813236]
[1730202849678,7.47423236,180.87,180.84,19.3539]
[1730202849880,7.47423236,180.86,180.84,13.8242]
[1730202850102,7.47423236,180.87,180.84,13.8242]
[1730202850406,7.47423236,180.88,180.84,13.8242]
[1730202850712,7.47423236,180.87,180.83,5.5299]
[1730202853582,13.00273236,180.88,180.83,7.47423236]
[1730202854180,7.47423236,180.87,180.82,7.47423236]
[1730202854889,7.47423236,180.87,180.83,5.53]
[1730202855092,7.47423236,180.88,180.83,26.82933236]
[1730202855295,7.47423236,180.87,180.83,19.3551]
[1730202856098,7.47423236,180.86,180.83,13.8251]
[1730202856717,7.47423236,180.85,180.83,13.8251]
[1730202857206,7.47423236,180.85,180.81,5.5306]
[1730202857409,7.47423236,180.84,180.8,13.8272]
[1730202857592,7.47423236,180.84,180.8,19.3581]
[1730202858609,7.47423236,180.85,180.8,7.47423236]
[1730202859899,7.47423236,180.85,180.81,5.5306]
[1730202861204,7.47423236,180.85,180.8,7.47423236]
[1730202862122,7.47423236,180.85,180.79,7.47423236]
[1730202862428,7.47423236,180.85,180.8,5.5309]
[1730202863409,7.47423236,180.85,180.8,19.3583]
[1730202864011,7.47423236,180.85,180.8,21.30163236]
[1730202864517,7.47423236,180.84,180.8,13.8274]
[1730202864718,7.47423236,180.81,180.77,13.8296]
[1730202865018,7.47423236,180.83,180.77,21.30383236]
[1730202865226,15.2973,180.85,180.79,7.47423236]
[1730202865407,7.47423236,180.84,180.79,7.47423236]
[1730202866822,7.47423236,180.84,180.8,5.5309]
[1730202867319,15.4898,180.89,180.81,7.47423236]
[1730202867512,7.47423236,180.86,180.81,7.47423236]
[1730202868505,7.47423236,180.85,180.8,7.47423236]
[1730202870206,7.47423236,180.85,180.81,5.5306]
[1730202870822,7.47423236,180.85,180.81,19.3572]
[1730202871013,13.00333236,180.86,180.81,26.83143236]
[1730202874025,7.47423236,180.84,180.8,5.5309]
[1730202874419,7.47423236,180.83,180.78,13.8286]
[1730202874627,7.47423236,180.83,180.78,19.3601]
[1730202874836,7.47423236,180.83,180.78,26.83433236]
[1730202875330,5.5291,180.86,180.8,7.47423236]
[1730202875514,13.00373236,180.85,180.8,13.00503236]
[1730202877208,7.47423236,180.84,180.79,7.47423236]
[1730202877410,7.47423236,180.84,180.78,13.8286]
[1730202877621,7.47423236,180.83,180.78,21.30283236]
[1730202878738,7.47423236,180.83,180.78,26.83433236]
[1730202879433,7.47423236,180.83,180.79,7.47423236]
[1730202879736,7.47423236,180.83,180.79,13.00523236]
[1730202880829,7.47423236,180.84,180.79,13.00523236]
[1730202881006,7.47423236,180.85,180.8,7.47423236]
[1730202882016,13.00373236,180.85,180.8,13.00493236]
[1730202883209,13.00373236,180.85,180.79,7.47423236]
[1730202883829,13.00373236,180.85,180.8,7.47423236]
[1730202884610,13.00373236,180.85,180.8,13.00513236]
[1730202885637,5.5295,180.85,180.81,7.47423236]
[1730202886314,13.00373236,180.85,180.8,7.47423236]
[1730202886719,13.00373236,180.85,180.8,5.5309]
[1730202887838,13.00373236,180.85,180.79,7.47423236]
[1730202888036,7.47423236,180.85,180.8,7.47423236]
[1730202888235,15.4898,180.89,180.82,7.47423236]
[1730202888442,7.47423236,180.87,180.82,7.47423236]
[1730202888620,15.4898,180.89,180.82,7.47423236]
[1730202888830,7.47423236,180.87,180.82,7.47423236]
[1730202889216,13.00333236,180.87,180.82,7.47423236]
[1730202889617,7.47423236,180.86,180.81,13.00453236]
[1730202890018,5.5285,180.88,180.81,26.83113236]
[1730202890316,7.47423236,180.87,180.82,7.47423236]
[1730202890530,7.47423236,180.85,180.81,19.3569]
[1730202891238,13.00373236,180.85,180.81,13.8266]
[1730202894646,5.5295,180.85,180.81,21.30083236]
[1730202894961,13.00373236,180.85,180.81,13.8266]
[1730202898658,13.00373236,180.85,180.8,7.47423236]
[1730202900359,13.00373236,180.85,180.81,5.5306]
[1730202900571,5.5295,180.85,180.81,13.00483236]
[1730202901565,5.5291,180.86,180.81,13.00483236]
[1730202901766,5.5288,180.88,180.83,7.47423236]
[1730202901950,13.00303236,180.88,180.83,7.47423236]
[1730202902149,13.00303236,180.88,180.82,7.47423236]
[1730202903363,13.00303236,180.88,180.82,13.00433236]
[1730202903558,7.47423236,180.87,180.82,13.00433236]
[1730202904454,13.00313236,180.87,180.77,43.776884]
[1730202904656,13.00313236,180.87,180.82,7.47423236]
[1730202905156,5.5289,180.87,180.83,7.47423236]
[1730202905562,5.5289,180.87,180.83,13.00413236]
[1730202906365,28.49253236,180.89,180.83,26.82923236]
[1730202907169,7.47423236,180.88,180.83,26.82923236]
[1730202907982,13.00293236,180.88,180.83,26.82923236]
[1730202912863,5.5287,180.88,180.84,7.47423236]
[1730202913652,13.00293236,180.88,180.83,7.47423236]
[1730202914063,13.00293236,180.88,180.83,13.00413236]
[1730202914677,7.47423236,180.85,180.78,20.0]
[1730202914856,7.47423236,180.85,180.8,7.47423236]
[1730202915984,7.47423236,180.86,180.81,7.47423236]
[1730202916875,7.47423236,180.87,180.81,7.47423236]
[1730202917673,5.5291,180.86,180.81,26.83123236]
[1730202917878,15.4898,180.89,180.81,19.357]
[1730202918082,15.4898,180.89,180.84,7.47423236]
[1730202918083,22.96403236,180.89,180.84,7.47423236]
[1730202918387,22.96403236,180.89,180.83,7.47423236]
[1730202918388,7.47423236,180.88,180.83,7.47423236]
[1730202919577,13.00293236,180.88,180.83,13.00403236]
[1730202920782,28.49223236,180.89,180.83,26.82913236]
[1730202920987,28.49223236,180.89,180.84,7.47423236]
[1730202921368,28.49223236,180.89,180.84,6.47423236]
[1730202927076,7.47423236,180.87,180.82,7.47423236]
[1730202927870,7.47423236,180.88,180.83,7.47423236]
[1730202928076,5.5288,180.87,180.83,13.00423236]
[1730202931087,7.47423236,180.86,180.81,13.8259]
[1730202932095,7.47423236,180.85,180.81,13.8259]
[1730202932294,13.00383236,180.85,180.81,13.8259]
[1730202932892,7.47423236,180.84,180.77,13.8291]
[1730202933104,7.47423236,180.83,180.78,7.47423236]
[1730202933963,13.00453236,180.83,180.78,7.47423236]
[1730202934986,5.5303,180.83,180.79,7.47423236]
[1730202937393,25.5285,180.88,180.8,7.47423236]
[1730202937568,7.47423236,180.86,180.81,7.47423236]
[1730202938482,5.5294,180.85,180.81,7.47423236]
[1730202939273,13.00363236,180.85,180.8,13.00503236]
[1730202940694,7.47423236,180.84,180.79,7.47423236]
[1730202941677,7.47423236,180.84,180.8,5.5309]
[1730202942099,7.47423236,180.84,180.8,13.00513236]
[1730202942278,13.00363236,180.85,180.8,13.00513236]
[1730202942794,7.47423236,180.84,180.79,7.47423236]
[1730202943679,7.47423236,180.83,180.76,19.3625]
[1730202943896,7.47423236,180.83,180.78,7.47423236]
[1730202945310,7.47423236,180.83,180.79,5.5312]
[1730202947481,15.4898,180.89,180.8,7.47423236]
[1730202947692,5.5285,180.88,180.82,7.47423236]
[1730202947878,7.47423236,180.87,180.82,7.47423236]
[1730202948591,5.5291,180.86,180.82,7.47423236]
[1730202948833,13.00333236,180.86,180.81,13.00473236]
[1730202949600,7.47423236,180.87,180.82,7.47423236]
[1730202950281,13.00293236,180.88,180.82,7.47423236]
[1730202950476,13.00293236,180.88,180.82,13.00423236]
[1730202951098,7.47423236,180.87,180.82,13.00423236]
[1730202951487,13.00303236,180.87,180.82,13.00423236]
[1730202955100,7.47423236,180.84,180.81,19.3571]
[1730202956510,7.47423236,180.85,180.8,7.47423236]
[1730202957312,7.47423236,180.85,180.79,7.47423236]
[1730202957516,7.47423236,180.85,180.8,5.5309]
[1730202957727,7.47423236,180.85,180.8,13.00513236]
[1730202959000,7.47423236,180.85,180.8,7.47423236]
[1730202959300,13.00353236,180.86,180.8,7.47423236]
[1730202959731,13.00353236,180.86,180.81,7.47423236]
[1730202959903,5.5293,180.86,180.82,7.47423236]
[1730202960104,13.00303236,180.88,180.82,7.47423236]
[1730202960313,7.47423236,180.87,180.82,7.47423236]
[1730202960510,7.47423236,180.86,180.81,7.47423236]
[1730202961217,7.47423236,180.86,180.82,5.5303]
[1730202961825,13.00313236,180.87,180.82,13.00453236]
[1730202962623,7.47423236,180.86,180.81,7.47423236]
[1730202963724,7.47423236,180.86,180.82,5.5303]
[1730202964210,5.5289,180.87,180.83,7.47423236]
[1730202968517,8.80410425,180.9,180.86,7.47423236]
[1730202968725,14.33200425,180.9,180.87,7.47423236]
[1730202969025,8.80410425,180.9,180.87,7.47423236]
[1730202969223,8.80410425,180.9,180.83,19.3551]
[1730202969224,8.80410425,180.9,180.85,7.47423236]
[1730202970410,8.80410425,180.9,180.86,5.5291]
[1730202970817,21.80643661,180.9,180.83,13.8251]
[1730202971019,21.80643661,180.9,180.84,13.00363236]
[1730202971733,21.80643661,180.9,180.85,7.47423236]
[1730202972405,14.33220425,180.9,180.85,7.47423236]
[1730202972607,14.33220425,180.9,180.86,7.47423236]
[1730202973007,8.80410425,180.9,180.87,7.47423236]
[1730202973537,8.80410425,180.9,180.86,7.47423236]
[1730202973711,8.80410425,180.9,180.83,13.8251]
[1730202973906,8.80410425,180.9,180.86,7.47423236]
[1730202974105,14.33210425,180.9,180.86,13.00333236]
[1730202974530,21.80633661,180.9,180.86,5.5291]
[1730202976838,14.33210425,180.9,180.86,5.5291]
[1730202977012,14.33210425,180.9,180.86,7.47423236]
[1730202978014,14.33210425,180.9,180.85,7.47423236]
[1730202979225,14.33210425,180.9,180.86,7.47423236]
[1730202979820,14.33210425,180.9,180.86,13.00333236]
[1730202980208,14.33210425,180.9,180.87,7.47423236]
[1730202981612,14.33210425,180.9,180.86,7.47423236]
[1730202983016,14.33210425,180.9,180.87,7.47423236]
[1730202984811,14.33210425,180.9,180.86,7.47423236]
[1730202986235,14.33210425,180.9,180.85,13.00353236]
[1730202986429,21.80633661,180.9,180.85,13.00353236]
[1730202987340,21.80633661,180.9,180.84,13.00383236]
[1730202988418,5.5275,180.92,180.88,7.47423236]
[1730202989325,7.47423236,180.93,180.88,7.47423236]
[1730202990826,5.5273,180.92,180.88,7.47423236]
[1730202993132,5.5273,180.92,180.87,7.47423236]
[1730202994028,5.5268,180.94,180.9,7.47423236]
[1730202994221,5.5268,180.94,180.91,7.47423236]
[1730202995042,5.5268,180.94,180.9,7.47423236]
[1730202997642,13.00103236,180.94,180.89,7.47423236]
[1730202998740,13.00103236,180.94,180.89,13.00233236]
[1730202999049,5.5268,180.94,180.9,7.47423236]
[1730203002244,5.526,180.96,180.9,13.00203236]
[1730203002431,7.47423236,180.95,180.9,13.00203236]
[1730203003151,7.47423236,180.95,180.9,5.5278]
[1730203003514,13.00083236,180.95,180.9,5.5278]
[1730203004327,13.00083236,180.95,180.9,13.00203236]
[1730203005340,13.00083236,180.95,180.89,7.47423236]
[1730203005944,7.47423236,180.92,180.87,7.47423236]
[1730203006450,7.47423236,180.92,180.86,7.47423236]
[1730203007649,13.00173236,180.92,180.86,13.00313236]
[1730203008151,13.00173236,180.92,180.87,7.47423236]
[1730203010229,13.00173236,180.92,180.87,13.00293236]
[1730203011053,7.47423236,180.91,180.86,7.47423236]
[1730203011252,7.47423236,180.9,180.85,26.82633236]
[1730203013948,13.00233236,180.9,180.85,13.823]
[1730203014148,13.00233236,180.9,180.84,13.00383236]
[1730203014149,7.47423236,180.88,180.84,5.5296]
[1730203014538,7.47423236,180.86,180.82,19.3558]
[1730203014742,7.47423236,180.87,180.82,19.3558]
[1730203015347,7.47423236,180.86,180.79,13.8278]
[1730203015541,7.47423236,180.86,180.81,7.47423236]
[1730203016239,0.1,180.9,180.79,13.8278]
[1730203016240,7.47423236,180.84,180.79,13.8278]
[1730203016440,13.00423236,180.84,180.79,13.8278]
[1730203016646,13.00423236,180.84,180.79,21.30203236]
[1730203016834,5.53,180.84,180.8,7.47423236]
[1730203017036,5.53,180.84,180.79,21.30203236]
[1730203017448,5.53,180.84,180.79,26.83323236]
[1730203018655,7.47423236,180.82,180.77,21.7334]
[1730203018838,7.47423236,180.82,180.76,26.83653236]
[1730203019164,7.47423236,180.82,180.77,7.47423236]
[1730203020557,7.47423236,180.82,180.78,5.5315]
[1730203021064,7.47423236,180.82,180.78,19.3604]
[1730203023460,7.47423236,180.82,180.72,15.1694]
[1730203023762,7.47423236,180.82,180.73,20.0]
[1730203023962,7.47423236,180.82,180.77,7.47423236]
[1730203024335,7.47423236,180.82,180.73,20.0]
[1730203024530,7.47423236,180.82,180.77,7.47423236]
[1730203024770,5.5298,180.84,180.77,7.47423236]
[1730203025071,16.635,180.87,180.82,7.47423236]
[1730203025254,16.635,180.87,180.77,6.5572]
[1730203025255,7.47423236,180.86,180.81,7.47423236]
[1730203025438,7.47423236,180.85,180.8,7.47423236]
[1730203026057,7.47423236,180.84,180.79,7.47423236]
[1730203026366,29.63813236,180.87,180.82,7.47423236]
[1730203026741,7.47423236,180.86,180.8,7.47423236]
[1730203026943,7.47423236,180.84,180.75,20.0]
[1730203027451,7.47423236,180.84,180.79,7.47423236]
[1730203028157,7.47423236,180.84,180.79,13.00543236]
[1730203029343,5.5295,180.85,180.81,7.47423236]
[1730203029538,5.5295,180.85,180.82,7.47423236]
[1730203029748,5.5295,180.85,180.83,7.47423236]
[1730203029944,5.5295,180.85,180.82,7.47423236]
[1730203030352,5.5291,180.86,180.82,7.47423236]
[1730203031145,13.00333236,180.86,180.81,7.47423236]
[1730203031345,13.00333236,180.86,180.78,13.8289]
[1730203031547,13.00333236,180.86,180.81,7.47423236]
[1730203033167,5.5291,180.86,180.82,7.47423236]
[1730203035164,13.00333236,180.86,180.81,7.47423236]
[1730203035877,5.5291,180.86,180.82,7.47423236]
[1730203037156,22.1639,180.87,180.83,7.47423236]
[1730203043053,29.63813236,180.87,180.82,7.47423236]
[1730203043249,29.63813236,180.87,180.8,5.5307]
[1730203043250,7.47423236,180.86,180.81,7.47423236]
[1730203043455,7.47423236,180.85,180.8,7.47423236]
[1730203044953,31.25111636,180.86,180.8,7.47423236]
[1730203045371,5.5294,180.85,180.8,7.47423236]
[1730203049580,5.5294,180.85,180.81,7.47423236]
[1730203051377,5.5294,180.85,180.74,5.5328]
[1730203051578,5.5294,180.85,180.8,7.47423236]
[1730203052274,16.635,180.87,180.81,7.47423236]
[1730203052583,22.1639,180.87,180.83,7.47423236]
[1730203057664,29.63813236,180.87,180.82,7.47423236]
[1730203058084,31.25111636,180.86,180.78,13.8286]
[1730203058265,7.47423236,180.84,180.79,7.47423236]
[1730203058683,7.47423236,180.84,180.78,13.8286]
[1730203058985,7.47423236,180.84,180.79,7.47423236]
[1730203059167,7.47423236,180.85,180.8,7.47423236]
[1730203059370,7.47423236,180.85,180.79,7.47423236]
[1730203059779,5.5297,180.84,180.79,7.47423236]
[1730203060985,7.47423236,180.84,180.79,7.47423236]
[1730203061992,13.00363236,180.85,180.8,7.47423236]
[1730203064485,5.5294,180.85,180.8,7.47423236]
[1730203064671,5.5294,180.85,180.82,7.47423236]
[1730203065692,37.93123236,180.87,180.82,7.47423236]
[1730203065875,5.5291,180.86,180.82,7.47423236]
[1730203067582,13.00333236,180.86,180.81,7.47423236]
[1730203069193,7.47423236,180.84,180.77,13.8293]
[1730203069384,7.47423236,180.84,180.79,7.47423236]
[1730203070191,7.47423236,180.83,180.74,5.5328]
[1730203070396,5.5297,180.84,180.76,7.47423236]
[1730203070397,7.47423236,180.82,180.76,7.47423236]
[1730203070692,7.47423236,180.81,180.76,7.47423236]
[1730203070896,7.47423236,180.79,180.7,5.534]
[1730203071067,16.4479,180.82,180.7,5.534]
[1730203071068,7.47423236,180.78,180.73,7.47423236]
[1730203071578,7.47423236,180.77,180.72,7.47423236]
[1730203072303,7.47423236,180.79,180.74,7.47423236]
[1730203072485,5.5315,180.78,180.74,7.47423236]
[1730203072685,5.5315,180.78,180.75,7.47423236]
[1730203072874,5.5312,180.79,180.75,7.47423236]
[1730203073279,36.78211636,180.8,180.75,7.47423236]
[1730203073474,5.531,180.8,180.76,7.47423236]
[1730203073686,5.531,180.8,180.77,7.47423236]
[1730203073992,21.8785,180.82,180.78,7.47423236]
[1730203077306,21.8785,180.82,180.75,5.5323]
[1730203077607,29.35273236,180.82,180.77,7.47423236]
[1730203078587,23.776884,180.81,180.73,5.5329]
[1730203078788,31.25111636,180.81,180.75,7.47423236]
[1730203079785,13.00513236,180.8,180.75,7.47423236]
[1730203080191,23.776884,180.79,180.74,7.47423236]
[1730203080395,23.776884,180.79,180.75,7.47423236]
[1730203080908,31.25111636,180.79,180.74,7.47423236]
[1730203081998,5.5315,180.78,180.74,7.47423236]
[1730203086216,13.00573236,180.78,180.74,7.47423236]
[1730203086390,13.00573236,180.78,180.73,7.47423236]
[1730203087089,13.00573236,180.78,180.7,19.369]
[1730203087289,13.00573236,180.78,180.73,7.47423236]
[1730203087811,7.47423236,180.77,180.72,7.47423236]
[1730203088215,31.25111636,180.76,180.7,13.835]
[1730203088402,31.25111636,180.76,180.71,7.47423236]
[1730203088601,23.776884,180.76,180.72,7.47423236]
[1730203089927,29.309084,180.76,180.72,7.47423236]
[1730203091995,23.776884,180.76,180.7,13.835]
[1730203092323,23.776884,180.76,180.72,7.47423236]
[1730203093297,23.776884,180.76,180.73,7.47423236]
[1730203093713,23.776884,180.78,180.75,7.47423236]
[1730203093923,23.776884,180.79,180.75,7.47423236]
[1730203095925,31.25111636,180.79,180.74,7.47423236]
[1730203098116,23.776884,180.79,180.75,7.47423236]
[1730203101634,29.308284,180.79,180.75,7.47423236]
[1730203104139,36.88251636,180.79,180.71,19.3677]
[1730203104428,36.88251636,180.79,180.73,7.47423236]
[1730203105019,36.88251636,180.79,180.74,7.47423236]
[1730203105323,29.308284,180.79,180.75,7.47423236]
[1730203105525,23.776884,180.79,180.75,7.47423236]
[1730203108142,29.308184,180.79,180.73,13.8327]
[1730203108436,29.308184,180.79,180.75,7.47423236]
[1730203115419,6.49027781,180.81,180.77,7.47423236]
[1730203115942,5.5306,180.81,180.77,7.47423236]
[1730203116646,23.776884,180.8,180.77,7.47423236]
[1730203119544,29.308084,180.8,180.75,7.47423236]
[1730203119744,36.78231636,180.8,180.75,7.47423236]
[1730203119933,7.47423236,180.79,180.74,7.47423236]
[1730203120839,36.78231636,180.8,180.75,7.47423236]
[1730203122743,23.776884,180.78,180.73,7.47423236]
[1730203122922,23.776884,180.78,180.74,7.47423236]
[1730203123122,23.776884,180.78,180.75,7.47423236]
[1730203123336,23.776884,180.79,180.75,7.47423236]
[1730203123951,23.776884,180.81,180.77,7.47423236]
[1730203124132,30.0,180.78,180.77,7.47423236]
[1730203124444,30.0,180.78,180.76,7.47423236]
[1730203125350,7.47423236,180.81,180.76,7.47423236]
[1730203125848,23.776884,180.8,180.76,13.00623236]
[1730203126926,23.776884,180.8,180.69,6.3502]
[1730203127128,23.776884,180.8,180.75,7.47423236]
[1730203128129,31.25111636,180.8,180.75,13.00643236]
[1730203129822,36.88211636,180.8,180.74,19.364]
[1730203130022,36.88211636,180.8,180.75,7.47423236]